bitfinex/quotes_BTCUSD_20250110
["timestamp","ask_amount","ask_price","bid_price","bid_amount"]
[1736501104055,0.00412377,95013.0,95012.0,0.18349894]
[1736501106297,0.30218329,95013.0,95012.0,0.18349894]
[1736501108287,0.30118329,95013.0,95012.0,0.18349894]
[1736501108864,0.30118329,95013.0,95012.0,0.17449892]
[1736501109202,0.29818329,95013.0,95012.0,0.17449892]
[1736501109419,0.30018329,95013.0,95012.0,0.17449892]
[1736501109752,0.30118329,95013.0,95012.0,0.17449892]
[1736501111057,0.37955952,95012.0,95007.0,0.21051]
[1736501112514,0.37955952,95012.0,94992.0,0.01062066]
[1736501112701,0.38555952,95012.0,95007.0,0.001]
[1736501112984,0.38555952,95012.0,95009.0,0.210505]
[1736501112985,0.30405952,95012.0,95009.0,0.210505]
[1736501113586,0.29805952,95012.0,95009.0,0.210505]
[1736501114005,0.30805952,95012.0,95009.0,0.41201098]
[1736501114413,0.30605952,95012.0,95009.0,0.41201098]
[1736501114756,0.30905952,95012.0,95009.0,0.41201098]
[1736501115404,0.30105952,95012.0,95009.0,0.41201098]
[1736501115579,0.30805952,95012.0,95009.0,0.41301098]
[1736501117668,0.30805952,95012.0,95011.0,0.210501]
[1736501118451,0.30505952,95012.0,95011.0,0.210501]
[1736501118971,0.29805952,95012.0,95011.0,0.20150098]
[1736501119765,0.30505952,95012.0,95011.0,0.20150098]
[1736501119976,0.30227037,95012.0,95011.0,0.20150098]
[1736501120181,0.29527037,95012.0,95011.0,0.20150098]
[1736501120363,0.29527037,95012.0,95011.0,0.20450098]
[1736501120537,0.29827037,95012.0,95011.0,0.20450098]
[1736501121001,0.29527037,95012.0,95011.0,0.20450098]
[1736501121351,0.29527037,95012.0,95011.0,0.20550098]
[1736501122403,0.29527037,95012.0,95011.0,0.21528655]
[1736501122759,0.29527037,95012.0,95011.0,0.21228655]
[1736501123101,0.29527037,95012.0,95011.0,0.21528655]
[1736501123916,0.29527037,95012.0,95011.0,0.20728653]
[1736501128480,0.29527037,95012.0,95011.0,0.214567]
[1736501129659,0.29527037,95012.0,95011.0,0.20556698]
[1736501133858,0.29527037,95012.0,95011.0,0.19656696]
[1736501134055,0.29527037,95012.0,95011.0,0.18578139]
[1736501134877,0.29527037,95012.0,95011.0,0.18278139]
[1736501135229,0.29527037,95012.0,95011.0,0.18178139]
[1736501135384,0.29527037,95012.0,95011.0,0.18478139]
[1736501135583,0.29527037,95012.0,95011.0,0.18278139]
[1736501135971,0.29527037,95012.0,95011.0,0.18478139]
[1736501137012,0.29527037,95012.0,95011.0,0.18378139]
[1736501137457,0.34357037,95012.0,95011.0,0.18478139]
[1736501138085,0.38597978,95012.0,95011.0,0.18478139]
[1736501138622,0.38597978,95012.0,95011.0,0.18178139]
[1736501139113,0.38897978,95012.0,95011.0,0.17278137]
[1736501139286,0.34657037,95012.0,95011.0,0.17278137]
[1736501139513,0.34757037,95012.0,95011.0,0.17278137]
[1736501140551,0.29927037,95012.0,95011.0,0.17278137]
[1736501140750,0.29827037,95012.0,95011.0,0.17278137]
[1736501140951,0.29927037,95012.0,95011.0,0.17278137]
[1736501144137,0.29927037,95012.0,95011.0,0.00728047]
[1736501144786,0.29927037,95012.0,95011.0,0.21778147]
[1736501149005,0.29927037,95012.0,95011.0,0.21606775]
[1736501149183,0.29927037,95012.0,95011.0,0.20878145]
[1736501153912,0.29927037,95012.0,95011.0,0.19978143]
[1736501156601,0.29927037,95012.0,95009.0,0.20150498]
[1736501156602,0.37617037,95012.0,95009.0,0.20150498]
[1736501156805,0.049,95011.0,95009.0,0.20150498]
[1736501157283,0.29527037,95010.0,95009.0,0.20150498]
[1736501158344,0.29527037,95010.0,95005.0,0.210515]
[1736501158547,0.29527037,95010.0,95006.0,0.210511]
[1736501158744,0.29527037,95010.0,95006.0,0.421024]
[1736501158945,0.29527037,95010.0,95006.0,0.41202398]
[1736501159534,0.29727037,95010.0,95006.0,0.41202398]
[1736501159756,0.29527037,95010.0,95006.0,0.41202398]
[1736501160299,0.29827037,95010.0,95006.0,0.41202398]
[1736501160752,0.29727037,95010.0,95006.0,0.41202398]
[1736501161127,0.29827037,95010.0,95006.0,0.41202398]
[1736501161879,0.003,95010.0,95009.0,0.15]
[1736501162092,0.003,95010.0,95009.0,0.33499976]
[1736501162986,0.001,95010.0,95009.0,0.33499976]
[1736501163181,0.001,95010.0,95009.0,0.35460379]
[1736501163496,0.001,95010.0,95009.0,0.35860379]
[1736501163725,0.00012377,95013.0,95010.0,0.421008]
[1736501163839,0.00012377,95013.0,95012.0,0.20149898]
[1736501164043,0.00012377,95013.0,95012.0,0.30579874]
[1736501164457,0.00012377,95013.0,95012.0,0.56045913]
[1736501166049,0.00012377,95013.0,95012.0,0.5418551]
[1736501166781,0.00012377,95013.0,95012.0,0.30679874]
[1736501166985,0.00012377,95013.0,95012.0,0.30979874]
[1736501167185,7.7e-07,95013.0,95012.0,0.56059874]
[1736501167399,3e-07,95024.0,95023.0,0.438275]
[1736501167755,4.9e-05,95024.0,95023.0,0.55001476]
[1736501168122,0.17557297,95025.0,95024.0,0.15]
[1736501168322,0.11291877,95025.0,95024.0,0.33409976]
[1736501168525,0.11291877,95025.0,95024.0,0.40369976]
[1736501169101,0.00768377,95025.0,95024.0,0.42326823]
[1736501169301,0.00868377,95025.0,95024.0,0.44270823]
[1736501169731,0.00768377,95025.0,95024.0,0.43370823]
[1736501170008,8.53e-05,95051.0,95025.0,0.46067]
[1736501170009,7e-08,95026.0,95025.0,0.46067]
[1736501170182,7e-08,95026.0,95025.0,0.56496976]
[1736501170598,3.7e-07,95034.0,95033.0,0.210453]
[1736501170757,3.7e-07,95034.0,95033.0,0.39155276]
[1736501171682,3.7e-07,95034.0,95033.0,0.41455276]
[1736501171891,3.7e-07,95034.0,95033.0,0.41755276]
[1736501172642,0.00100037,95034.0,95033.0,0.42655276]
[1736501173176,0.00100037,95034.0,95033.0,0.40355276]
[1736501175237,0.00100037,95034.0,95033.0,0.41099276]
[1736501179295,0.00100037,95034.0,95033.0,0.33419276]
[1736501179503,0.00100037,95034.0,95033.0,0.222453]
[1736501179698,0.04940037,95034.0,95033.0,0.222453]
[1736501179949,0.04940037,95034.0,95033.0,0.012]
[1736501179950,0.34467074,95034.0,95033.0,0.012]
[1736501180151,0.37915488,95034.0,95033.0,0.012]
[1736501180534,0.42007074,95034.0,95033.0,0.009]
[1736501181086,0.42007074,95034.0,95033.0,0.01]
[1736501181633,0.42007074,95034.0,95025.0,0.210469]
[1736501181634,0.41907074,95034.0,95029.0,0.21046]
[1736501181848,0.41907074,95034.0,95033.0,0.003]
[1736501182047,0.42107074,95034.0,95029.0,0.21046]
[1736501182458,0.42507074,95034.0,95033.0,0.001]
[1736501183984,0.42507074,95034.0,95030.0,0.20245798]
[1736501184497,0.42707074,95034.0,95030.0,0.20245798]
[1736501184847,0.41907074,95034.0,95030.0,0.20245798]
[1736501185270,0.42707074,95034.0,95030.0,0.001]
[1736501186612,0.4271194,95034.0,95030.0,0.001]
[1736501187163,0.4271194,95034.0,95030.0,0.211458]
[1736501187733,0.4271194,95034.0,95030.0,0.421917]
[1736501188735,0.4271194,95034.0,95030.0,0.211458]
[1736501189862,0.4271194,95034.0,95030.0,0.20245798]
[1736501190054,0.4271194,95034.0,95023.0,0.01032034]
[1736501190055,0.4271194,95034.0,95031.0,0.210457]
[1736501190212,0.3517194,95034.0,95031.0,0.210457]
[1736501191045,0.3437194,95034.0,95031.0,0.420914]
[1736501191260,0.3457194,95034.0,95031.0,0.420914]
[1736501191416,0.3033194,95034.0,95031.0,0.421914]
[1736501191608,0.3033194,95034.0,95033.0,0.210453]
[1736501191811,0.3033194,95034.0,95033.0,0.360453]
[1736501192243,0.3033194,95034.0,95033.0,0.46475276]
[1736501192458,0.3013194,95034.0,95033.0,0.54685276]
[1736501192760,0.2953194,95034.0,95033.0,0.54685276]
[1736501192964,0.2953194,95034.0,95033.0,0.54885276]
[1736501193640,0.2953194,95034.0,95033.0,0.31675276]
[1736501193957,0.2953194,95034.0,95033.0,0.20345298]
[1736501194589,0.2953194,95034.0,95033.0,0.20445298]
[1736501194790,0.2953194,95034.0,95033.0,0.20245298]
[1736501195238,0.2953194,95034.0,95033.0,0.20145298]
[1736501197468,0.2963194,95034.0,95033.0,0.20145298]
[1736501198157,0.2963194,95034.0,95033.0,0.28355298]
[1736501198363,0.2953194,95034.0,95033.0,0.28355298]
[1736501198566,0.2953194,95034.0,95033.0,0.28455298]
[1736501198974,0.2953194,95034.0,95033.0,0.27555296]
[1736501202991,0.2953194,95034.0,95033.0,0.37985272]
[1736501204009,0.2953194,95034.0,95033.0,0.3708527]
[1736501206940,0.2953194,95034.0,95033.0,0.5208527]
[1736501208187,4.903e-05,95034.0,95033.0,0.5208527]
[1736501211358,4.903e-05,95034.0,95033.0,0.56339744]
[1736501211551,4.903e-05,95034.0,95033.0,0.56239744]
[1736501211807,4.903e-05,95034.0,95033.0,0.56339744]
[1736501212397,7.3e-07,95036.0,95035.0,0.1051]
[1736501212572,7.3e-07,95036.0,95035.0,0.36045173]
[1736501212780,4.458e-05,95051.0,95048.0,0.420838]
[1736501212958,4.458e-05,95051.0,95050.0,0.210415]
[1736501213197,4.458e-05,95051.0,95050.0,0.31471476]
[1736501213974,4.458e-05,95051.0,95050.0,0.30571474]
[1736501214378,4.458e-05,95051.0,95050.0,0.20141498]
[1736501214763,9.325e-05,95051.0,95050.0,0.20141498]
[1736501216672,9.325e-05,95051.0,95050.0,0.21201009]
[1736501218797,9.325e-05,95051.0,95050.0,0.31630985]
[1736501218999,9.325e-05,95051.0,95050.0,0.30730983]
[1736501219384,9.325e-05,95051.0,95050.0,0.48030983]
[1736501219930,9.325e-05,95051.0,95050.0,0.45730983]
[1736501220737,9.325e-05,95051.0,95050.0,0.46430983]
[1736501221132,9.325e-05,95051.0,95050.0,0.47170983]
[1736501222264,9.325e-05,95051.0,95050.0,0.46670983]
[1736501222467,9.325e-05,95051.0,95050.0,0.46970983]
[1736501223651,9.325e-05,95051.0,95050.0,0.46770983]
[1736501224035,9.325e-05,95051.0,95050.0,0.46870983]
[1736501228899,9.325e-05,95051.0,95050.0,0.46130983]
[1736501229110,9.325e-05,95051.0,95050.0,0.46870983]
[1736501232413,9.325e-05,95051.0,95050.0,0.46130983]
[1736501232616,9.325e-05,95051.0,95050.0,0.46870983]
[1736501234988,9.325e-05,95051.0,95050.0,0.46770983]
[1736501235106,9.325e-05,95051.0,95050.0,0.46470983]
[1736501235569,9.325e-05,95051.0,95050.0,0.46770983]
[1736501235925,9.325e-05,95051.0,95050.0,0.46870983]
[1736501238930,9.325e-05,95051.0,95050.0,0.54730983]
[1736501239361,9.325e-05,95051.0,95050.0,0.56687687]
[1736501240092,9.325e-05,95051.0,95050.0,0.80131637]
[1736501242167,2.5e-07,95051.0,95050.0,0.82431637]
[1736501243447,2.5e-07,95051.0,95050.0,0.82131637]
[1736501243636,0.00100025,95051.0,95050.0,0.82731637]
[1736501243793,0.00100025,95051.0,95050.0,0.59187687]
[1736501244205,5.5e-07,95052.0,95051.0,0.173]
[1736501244401,0.29527037,95079.0,95056.0,0.383402]
[1736501244402,5.5e-07,95057.0,95056.0,0.383402]
[1736501244605,5.5e-07,95057.0,95056.0,0.56710176]
[1736501246009,5.5e-07,95057.0,95056.0,0.5936688]
[1736501246408,0.02896255,95068.0,95067.0,0.287477]
[1736501246624,0.02896255,95068.0,95067.0,0.56477676]
[1736501246811,5.5e-07,95068.0,95067.0,0.56477676]
[1736501247724,5.5e-07,95068.0,95067.0,0.56269332]
[1736501247926,5.5e-07,95068.0,95067.0,0.58226036]
[1736501248165,5.5e-07,95068.0,95067.0,0.58326036]
[1736501248368,8.5e-07,95073.0,95072.0,0.383366]
[1736501248551,8.5e-07,95073.0,95072.0,0.57776576]
[1736501249136,8.5e-07,95073.0,95072.0,0.5973328]
[1736501250071,8.5e-07,95073.0,95072.0,0.6023328]
[1736501250220,8.5e-07,95073.0,95072.0,0.6043328]
[1736501253739,8.5e-07,95073.0,95072.0,0.58476576]
[1736501254091,8.5e-07,95073.0,95072.0,0.47906576]
[1736501254786,8.5e-07,95073.0,95072.0,0.47166576]
[1736501255013,8.5e-07,95073.0,95072.0,0.47906576]
[1736501256124,8.5e-07,95073.0,95072.0,0.47166576]
[1736501256366,8.5e-07,95073.0,95072.0,0.47906576]
[1736501263081,8.5e-07,95073.0,95072.0,0.47166576]
[1736501263282,8.5e-07,95073.0,95072.0,0.47906576]
[1736501263855,8.5e-07,95073.0,95072.0,0.367366]
[1736501264261,8.5e-07,95073.0,95072.0,0.217366]
[1736501264441,8.5e-07,95073.0,95072.0,0.215366]
[1736501264841,8.5e-07,95073.0,95072.0,0.211366]
[1736501266150,8.5e-07,95073.0,95072.0,0.210366]
[1736501266630,8.5e-07,95073.0,95072.0,0.31466576]
[1736501267583,8.5e-07,95073.0,95072.0,0.210366]
[1736501269313,8.5e-07,95073.0,95072.0,0.31466576]
[1736501273239,8.5e-07,95073.0,95072.0,0.41716576]
[1736501273774,8.5e-07,95073.0,95072.0,0.39416576]
[1736501274193,8.5e-07,95073.0,95072.0,0.31466576]
[1736501275126,8.5e-07,95073.0,95072.0,0.31766576]
[1736501275534,8.5e-07,95073.0,95072.0,0.31466576]
[1736501275729,8.5e-07,95073.0,95072.0,0.31666576]
[1736501275940,8.5e-07,95073.0,95072.0,0.31866576]
[1736501276155,8.5e-07,95073.0,95072.0,0.31666576]
[1736501276371,8.5e-07,95073.0,95072.0,0.31466576]
[1736501276569,8.5e-07,95073.0,95072.0,0.31766576]
[1736501278134,8.5e-07,95073.0,95072.0,0.31566576]
[1736501278933,8.5e-07,95073.0,95072.0,0.31466576]
[1736501286064,0.04437419,95079.0,95078.0,0.210353]
[1736501288492,0.04537419,95079.0,95078.0,0.210353]
[1736501290462,0.04537419,95079.0,95078.0,0.22116989]
[1736501291635,0.04537419,95079.0,95078.0,0.32546965]
[1736501292045,0.04537419,95079.0,95078.0,0.47546965]
[1736501292247,0.04537419,95079.0,95078.0,0.55516965]
[1736501292446,0.04537419,95079.0,95078.0,0.57816965]
[1736501292810,0.04437419,95079.0,95078.0,0.57816965]
[1736501293155,0.04437419,95079.0,95078.0,0.60174973]
[1736501293953,0.02333919,95079.0,95078.0,0.60174973]
[1736501294354,1.9e-07,95079.0,95078.0,0.60174973]
[1736501294794,1.9e-07,95079.0,95078.0,0.65074973]
[1736501295000,0.0143824,95095.0,95089.0,0.440029]
[1736501295175,0.0143824,95095.0,95089.0,0.54432876]
[1736501295403,0.00023135,95090.0,95089.0,0.54432876]
[1736501295604,0.00023135,95090.0,95089.0,0.56732876]
[1736501296329,0.00023135,95090.0,95089.0,0.56832876]
[1736501296766,0.00023135,95090.0,95089.0,0.56732876]
[1736501296975,0.00023135,95090.0,95089.0,0.57232876]
[1736501297585,0.02428403,95117.0,95114.0,0.210273]
[1736501297949,0.02428403,95117.0,95114.0,0.370546]
[1736501298557,0.02428403,95117.0,95114.0,0.160273]
[1736501298874,0.0117085,95117.0,95114.0,0.15127298]
[1736501299110,0.0117085,95117.0,95102.0,0.210299]
[1736501299504,0.0117085,95117.0,95108.0,0.210285]
[1736501299691,0.0117085,95117.0,95114.0,0.001]
[1736501300095,0.01182113,95117.0,95114.0,0.001]
[1736501300459,0.01182113,95117.0,95112.0,0.420556]
[1736501300826,0.0476,95116.0,95112.0,0.420556]
[1736501302110,0.0496,95116.0,95112.0,0.420556]
[1736501302431,0.0496,95116.0,95114.0,0.001]
[1736501302605,0.0496,95116.0,95115.0,0.210271]
[1736501303609,0.0806,95114.0,95103.0,0.210296]
[1736501303885,0.210296,95104.0,95092.0,0.210321]
[1736501304058,0.10429976,95113.0,95092.0,0.210321]
[1736501304059,0.0806,95103.0,95092.0,0.210321]
[1736501305308,0.0826,95103.0,95092.0,0.210321]
[1736501305706,0.0806,95103.0,95092.0,0.210321]
[1736501305913,0.0806,95103.0,95092.0,0.420642]
[1736501306422,0.0806,95103.0,95092.0,0.421642]
[1736501306642,0.0896,95103.0,95092.0,0.421642]
[1736501306855,0.047,95102.0,95092.0,0.421642]
[1736501307697,0.047,95102.0,95096.0,0.210313]
[1736501308335,0.05,95102.0,95096.0,0.210313]
[1736501308744,0.047,95102.0,95096.0,0.210313]
[1736501309221,0.05,95102.0,95096.0,0.210313]
[1736501309380,0.057,95102.0,95096.0,0.210313]
[1736501309637,0.05,95102.0,95096.0,0.210313]
[1736501309875,0.057,95102.0,95096.0,0.20231298]
[1736501310135,0.057,95102.0,95096.0,0.001]
[1736501310615,0.057,95102.0,95096.0,0.211313]
[1736501310811,0.0798,95101.0,95096.0,0.001]
[1736501311919,0.0828,95101.0,95096.0,0.001]
[1736501312078,0.0828,95101.0,95094.0,0.210317]
[1736501312485,0.0898,95101.0,95096.0,0.001]
[1736501313358,0.0828,95101.0,95097.0,0.210311]
[1736501313560,0.0898,95101.0,95097.0,0.210311]
[1736501313768,0.0898,95101.0,95094.0,0.001]
[1736501313912,0.0828,95101.0,95091.0,0.41164698]
[1736501314122,0.0798,95101.0,95091.0,0.41164698]
[1736501314342,0.0828,95101.0,95091.0,0.41164698]
[1736501314907,0.0798,95101.0,95091.0,0.41164698]
[1736501315112,0.0828,95101.0,95091.0,0.41164698]
[1736501315508,0.0828,95101.0,95096.0,0.001]
[1736501315509,0.0898,95101.0,95096.0,0.001]
[1736501315978,0.0828,95101.0,95091.0,0.41164698]
[1736501316189,0.0828,95101.0,95095.0,0.210314]
[1736501316190,0.0898,95101.0,95095.0,0.210314]
[1736501316419,0.01,95101.0,95095.0,0.210314]
[1736501316594,0.003,95101.0,95095.0,0.210314]
[1736501316799,0.003,95101.0,95096.0,0.001]
[1736501317036,0.01,95101.0,95096.0,0.001]
[1736501317244,0.003,95101.0,95097.0,0.210311]
[1736501317367,0.047,95102.0,95097.0,0.210311]
[1736501317575,0.01,95101.0,95097.0,0.420622]
[1736501318180,0.007,95101.0,95097.0,0.420622]
[1736501318498,0.01,95101.0,95097.0,0.210311]
[1736501318700,0.01,95101.0,95097.0,0.420622]
[1736501318880,0.01,95101.0,95097.0,0.41162198]
[1736501319078,0.003,95101.0,95097.0,0.41162198]
[1736501319705,0.011,95101.0,95097.0,0.41162198]
[1736501320082,0.003,95101.0,95097.0,0.41162198]
[1736501320247,0.003,95101.0,95097.0,0.41262198]
[1736501320458,0.011,95101.0,95097.0,0.41262198]
[1736501322471,0.011,95101.0,95099.0,0.210307]
[1736501323682,0.29527037,95115.0,95099.0,0.210307]
[1736501323831,0.29527037,95115.0,95109.0,0.210284]
[1736501324032,0.29527037,95115.0,95109.0,0.20128398]
[1736501324875,0.004,95115.0,95109.0,0.20128398]
[1736501325076,0.081,95114.0,95109.0,0.20128398]
[1736501325656,0.081,95114.0,95109.0,0.20228398]
[1736501326077,0.081,95114.0,95109.0,0.20128398]
[1736501326909,0.089,95114.0,95109.0,0.20228398]
[1736501327113,0.081,95114.0,95109.0,0.20128398]
[1736501327665,0.00011263,95117.0,95109.0,0.20128398]
[1736501327865,0.004,95114.0,95109.0,0.20128398]
[1736501328287,0.00011263,95117.0,95109.0,0.20128398]
[1736501328565,0.008,95114.0,95109.0,0.20228398]
[1736501328769,0.011,95114.0,95109.0,0.20228398]
[1736501328965,0.011,95114.0,95109.0,0.19328396]
[1736501329166,0.008,95114.0,95109.0,0.19328396]
[1736501330477,0.008,95114.0,95109.0,0.001]
[1736501331029,0.011,95114.0,95109.0,0.001]
[1736501331678,0.011,95114.0,95110.0,0.420563]
[1736501331880,0.011,95114.0,95109.0,0.001]
[1736501332662,0.008,95114.0,95109.0,0.001]
[1736501333285,0.0874,95114.0,95109.0,0.001]
[1736501333851,0.0874,95114.0,95109.0,0.011]
[1736501334031,0.0904,95114.0,95109.0,0.00199998]
[1736501334692,0.0874,95114.0,95109.0,0.00199998]
[1736501334865,0.0904,95114.0,95109.0,0.00199998]
[1736501337293,0.011,95114.0,95109.0,0.00199998]
[1736501338958,0.011,95114.0,95105.0,0.20329196]
[1736501340142,0.003,95114.0,95105.0,0.20329196]
[1736501340281,0.012,95114.0,95105.0,0.20429196]
[1736501341133,0.009,95114.0,95105.0,0.20429196]
[1736501341334,0.012,95114.0,95105.0,0.20429196]
[1736501344018,0.012,95114.0,95105.0,0.19529194]
[1736501345724,0.012,95114.0,95111.0,0.420559]
[1736501345921,0.012,95114.0,95105.0,0.001]
[1736501346141,0.012,95114.0,95112.0,0.210277]
[1736501346512,0.003,95114.0,95112.0,0.210277]
[1736501346917,0.012,95114.0,95112.0,0.210277]
[1736501347275,0.003,95114.0,95112.0,0.210277]
[1736501347681,0.012,95114.0,95112.0,0.211277]
[1736501348166,0.009,95114.0,95112.0,0.211277]
[1736501348649,0.012,95114.0,95112.0,0.211277]
[1736501349145,0.009,95114.0,95112.0,0.20227698]
[1736501349584,0.009,95114.0,95112.0,0.001]
[1736501350334,0.012,95114.0,95112.0,0.001]
[1736501351887,0.012,95114.0,95113.0,0.210276]
[1736501352336,0.012,95114.0,95112.0,0.001]
[1736501352522,0.012,95114.0,95113.0,0.286676]
[1736501352953,0.00011263,95117.0,95113.0,0.286676]
[1736501353174,0.00011263,95117.0,95114.0,0.210273]
[1736501354035,0.00011263,95117.0,95114.0,0.20127298]
[1736501354275,0.00411263,95117.0,95114.0,0.20127298]
[1736501354478,0.01211263,95117.0,95114.0,0.20227298]
[1736501354679,0.01211263,95117.0,95114.0,0.001]
[1736501355629,0.00811263,95117.0,95115.0,0.210271]
[1736501355831,0.01211263,95117.0,95115.0,0.210271]
[1736501356763,0.00811263,95117.0,95115.0,0.210271]
[1736501357308,0.00411263,95117.0,95111.0,0.210278]
[1736501357439,0.01211263,95117.0,95115.0,0.001]
[1736501358677,0.00811263,95117.0,95115.0,0.001]
[1736501359071,0.01211263,95117.0,95111.0,0.20227798]
[1736501359274,0.01211263,95117.0,95107.0,0.290287]
[1736501359435,0.00811263,95117.0,95107.0,0.290287]
[1736501359794,0.01211263,95117.0,95107.0,0.290287]
[1736501360442,0.00011263,95117.0,95107.0,0.290287]
[1736501360655,0.01211263,95117.0,95107.0,0.291287]
[1736501361221,0.01198608,95117.0,95107.0,0.291287]
[1736501363074,0.01198608,95117.0,95107.0,0.211287]
[1736501363255,0.01198608,95117.0,95107.0,0.001]
[1736501364050,0.01198608,95117.0,95103.0,0.41259398]
[1736501364224,0.01198608,95117.0,95106.0,0.210289]
[1736501364873,0.210269,95116.0,95103.0,0.20229698]
[1736501365876,0.059,95117.0,95103.0,0.20229698]
[1736501366082,0.047,95117.0,95103.0,0.20229698]
[1736501366292,0.003,95116.0,95103.0,0.20229698]
[1736501366490,0.003,95116.0,95103.0,0.20329698]
[1736501367058,0.056,95117.0,95103.0,0.20329698]
[1736501367265,0.051,95117.0,95103.0,0.20229698]
[1736501367698,0.009,95116.0,95103.0,0.20329698]
[1736501367869,0.051,95117.0,95103.0,0.20229698]
[1736501368478,0.047,95117.0,95103.0,0.41259398]
[1736501368834,0.004,95116.0,95103.0,0.41259398]
[1736501369040,0.004,95116.0,95107.0,0.210289]
[1736501369265,0.056,95117.0,95107.0,0.210289]
[1736501369747,0.056,95117.0,95107.0,0.20128898]
[1736501369748,0.06,95117.0,95107.0,0.20128898]
[1736501370182,0.047,95117.0,95107.0,0.20128898]
[1736501370383,0.056,95117.0,95107.0,0.20228898]
[1736501370578,0.06,95117.0,95107.0,0.20228898]
[1736501371624,0.06,95117.0,95107.0,0.001]
[1736501371858,0.0822,95115.0,95107.0,0.001]
[1736501372066,0.210279,95112.0,95107.0,0.001]
[1736501372279,0.31457876,95112.0,95107.0,0.001]
[1736501372596,0.31457876,95112.0,95099.0,0.210306]
[1736501372999,0.31457876,95112.0,95107.0,0.001]
[1736501373401,0.31457876,95112.0,95099.0,0.210306]
[1736501373603,0.32357876,95112.0,95107.0,0.001]
[1736501373801,0.32657876,95112.0,95107.0,0.001]
[1736501374000,0.11629976,95112.0,95099.0,0.20230598]
[1736501374203,0.11629976,95112.0,95100.0,0.210304]
[1736501375270,0.11329976,95112.0,95100.0,0.210304]
[1736501375447,0.10429976,95112.0,95100.0,0.210304]
[1736501375643,0.10729976,95112.0,95100.0,0.210304]
[1736501375843,0.11629976,95112.0,95100.0,0.210304]
[1736501376402,0.10729976,95112.0,95103.0,0.210296]
[1736501376769,0.10429976,95112.0,95101.0,0.210301]
[1736501376990,0.11629976,95112.0,95101.0,0.210301]
[1736501377187,0.10729976,95112.0,95101.0,0.210301]
[1736501377572,0.11629976,95112.0,95103.0,0.001]
[1736501378198,0.32657976,95112.0,95103.0,0.001]
[1736501378377,0.32357976,95112.0,95103.0,0.001]
[1736501378560,0.32657976,95112.0,95103.0,0.001]
[1736501378989,0.31757976,95112.0,95101.0,0.20130098]
[1736501379191,0.32357976,95112.0,95101.0,0.20230098]
[1736501379408,0.32757976,95112.0,95101.0,0.20230098]
[1736501379654,0.31857976,95112.0,95101.0,0.20130098]
[1736501379827,0.32757976,95112.0,95103.0,0.001]
[1736501380150,0.31457976,95112.0,95101.0,0.20130098]
[1736501380360,0.31857976,95112.0,95101.0,0.20130098]
[1736501380565,0.32757976,95112.0,95101.0,0.20230098]
[1736501380721,0.31857976,95112.0,95101.0,0.20130098]
[1736501381260,0.10829976,95112.0,95101.0,0.20130098]
[1736501381471,0.10429976,95112.0,95101.0,0.20130098]
[1736501381816,0.31857776,95112.0,95100.0,0.210303]
[1736501382376,0.32357776,95112.0,95103.0,0.001]
[1736501382600,0.11329976,95112.0,95103.0,0.001]
[1736501382723,0.11729976,95112.0,95103.0,0.001]
[1736501383189,0.10429976,95112.0,95100.0,0.210303]
[1736501383361,0.11329976,95112.0,95101.0,0.001]
[1736501383567,0.11729976,95112.0,95102.0,0.2103]
[1736501383769,0.10829976,95112.0,95102.0,0.2103]
[1736501383964,0.10829976,95112.0,95103.0,0.001]
[1736501384203,0.11729976,95112.0,95103.0,0.001]
[1736501384786,0.11329976,95112.0,95103.0,0.001]
[1736501385235,0.11729976,95112.0,95103.0,0.001]
[1736501385417,0.21028,95111.0,95102.0,0.20129998]
[1736501385613,0.10429976,95112.0,95102.0,0.20129998]
[1736501385798,0.11329976,95112.0,95102.0,0.20229998]
[1736501385993,0.10829976,95112.0,95102.0,0.20129998]
[1736501386466,0.11729976,95112.0,95103.0,0.001]
[1736501386673,0.11329976,95112.0,95102.0,0.20129998]
[1736501386878,0.11729976,95112.0,95102.0,0.20129998]
[1736501387055,0.12629976,95112.0,95102.0,0.20229998]
[1736501388150,0.12229976,95112.0,95102.0,0.20229998]
[1736501388557,0.12629976,95112.0,95102.0,0.20229998]
[1736501389035,0.12229976,95112.0,95102.0,0.19329996]
[1736501389579,0.12629976,95112.0,95102.0,0.19329996]
[1736501389899,0.13705706,95112.0,95102.0,0.19329996]
[1736501394013,0.13705706,95112.0,95102.0,0.18429994]
[1736501394214,0.21028,95111.0,95102.0,0.001]
[1736501394780,0.13705706,95112.0,95102.0,0.001]
[1736501395096,0.13305706,95112.0,95102.0,0.001]
[1736501395326,0.11505706,95112.0,95100.0,0.210303]
[1736501395545,0.013,95111.0,95102.0,0.001]
[1736501395743,0.013,95111.0,95103.0,0.210298]
[1736501396024,0.11505706,95112.0,95103.0,0.210298]
[1736501396220,0.12805706,95112.0,95103.0,0.210298]
[1736501396674,0.11905706,95112.0,95103.0,0.210298]
[1736501396883,0.009,95111.0,95103.0,0.210298]
[1736501397050,0.11905706,95112.0,95103.0,0.210298]
[1736501397252,0.10829976,95112.0,95103.0,0.210298]
[1736501397685,0.10429976,95112.0,95103.0,0.210298]
[1736501398049,0.10429976,95112.0,95100.0,0.210303]
[1736501398228,0.21028,95111.0,95100.0,0.210303]
[1736501398429,0.21428,95111.0,95100.0,0.210303]
[1736501398670,0.21428,95111.0,95103.0,0.001]
[1736501398849,0.21028,95111.0,95103.0,0.001]
[1736501399053,0.21028,95111.0,95100.0,0.20230298]
[1736501399336,0.21928,95111.0,95100.0,0.20330298]
[1736501399741,0.21028,95111.0,95100.0,0.20230298]
[1736501399959,0.21928,95111.0,95103.0,0.001]
[1736501400374,0.21028,95111.0,95100.0,0.20230298]
[1736501400576,0.21928,95111.0,95100.0,0.001]
[1736501400778,0.210282,95110.0,95100.0,0.001]
[1736501401964,0.210282,95110.0,95097.0,0.210311]
[1736501402191,0.28367438,95110.0,95097.0,0.210311]
[1736501402337,0.28367438,95110.0,95103.0,0.001]
[1736501402564,0.28367438,95110.0,95097.0,0.210311]
[1736501402889,0.28767438,95110.0,95097.0,0.210311]
[1736501403118,0.29667438,95110.0,95100.0,0.001]
[1736501403247,0.214282,95110.0,95097.0,0.210311]
[1736501403790,0.223282,95110.0,95103.0,0.001]
[1736501403970,0.219282,95110.0,95097.0,0.20231098]
[1736501404404,0.223282,95110.0,95097.0,0.20231098]
[1736501404569,0.210285,95109.0,95095.0,0.211314]
[1736501405153,0.210298,95103.0,95095.0,0.000999]